[Event "Turkish Cup 2024"]
[Site "Denizli"]
[Date "2024.07.31"]
[Round "3"]
[White "Zeyrek, Ayaz"]
[Black "Demirci, Fatih"]
[Result "0-1"]
[ECO "D11"]
[WhiteElo "1798"]
[BlackElo "1885"]
[Annotator "NA"]
[PlyCount "112"]
[EventDate "2024.08.01"]
[EventType "swiss"]
[EventCountry "TUR"]
[SourceTitle "playchess.com"]
[Source "ChessBase"]
[SourceQuality "1"]
[TimeControl "5400+30"]

1. d4 {[%emt 0:01:00]} d5 {[%emt 0:01:00]} 2. Nf3 {[%emt 0:00:00]} Bf5 {[%emt 0:00:30]} 3. c4 {[%emt 0:00:00]} e6 {[%emt 0:00:30]} 4. g3 {[%emt 0:00:30]} c6 {[%emt 0:00:00]} 5. Nc3 {[%emt 0:00:30]} Nf6 {[%emt 0:01:00]} 6. Bg2 {[%emt 0:00:30]} Be7 {[%emt 0:02:30]} 7. Nh4 {[%emt 0:02:30]} Bg6 {[%emt 0:05:30]} 8. Nxg6 {[%emt 0:00:30]} hxg6 {[%emt 0:00:00]} 9. Qb3 {[%emt 0:01:30]} Qb6 {[%emt 0:00:00]} 10. O-O {[%emt 0:01:30]} Qxb3 {[%emt 0:05:30]} 11. axb3 {[%emt 0:00:00]} Na6 {[%emt 0:00:00]} 12. Bf4 {[%emt 0:06:00]} Nh5 {[%emt 0:03:00]} 13. Be3 {[%emt 0:02:30]} Nc7 {[%emt 0:07:30]} 14. g4 {[%emt 0:01:30]} Nf6 {[%emt 0:00:30]} 15. Bf4 {[%emt 0:00:30]} Kd7 {[%emt 0:01:30]} 16. h3 {[%emt 0:00:30]} Bd6 {[%emt 0:00:30]} 17. Bxd6 {[%emt 0:02:30]} Kxd6 {[%emt 0:00:30]} 18. c5+ {[%emt 0:00:00]} Ke7 {[%emt 0:00:30]} 19. b4 {[%emt 0:03:00]} a6 {[%emt 0:01:30]} 20. f3 {[%emt 0:03:30]} Rad8 {[%emt 0:16:30]} 21. Rad1 {[%emt 0:03:30]} Rhe8 {[%emt 0:07:30]} 22. e4 {[%emt 0:03:30]} dxe4 {[%emt 0:04:30]} 23. fxe4 {[%emt 0:00:00]} g5 {[%emt 0:06:30]} 24. e5 {[%emt 0:03:00]} Nfd5 {[%emt 0:00:30]} 25. Ne4 {[%emt 0:07:30]} Ne3 {[%emt 0:01:30]} 26. Nd6 {[%emt 0:00:30]} Nxf1 {[%emt 0:00:30]} 27. Rxf1 {[%emt 0:00:30]} Rf8 {[%emt 0:00:30]} 28. Nxb7 {[%emt 0:01:30]} Rxd4 {[%emt 0:02:30]} 29. Na5 {[%emt 0:00:30]} Rd2 {[%emt 0:01:30]} 30. Nxc6+ {[%emt 0:03:30]} Kd7 {[%emt 0:01:30]} 31. Na5 {[%emt 0:02:30]} Nd5 {[%emt 0:02:30]} 32. Nc4 {[%emt 0:06:30]} Rd4 {[%emt 0:00:30]} 33. b3 {[%emt 0:01:30]} Nxb4 {[%emt 0:03:30]} 34. Ra1 {[%emt 0:02:30]} Kc7 {[%emt 0:07:04]} 35. Ra4 {[%emt 0:01:30]} Rb8 {[%emt 0:00:41]} 36. Nb6 {[%emt 0:00:30]} Rxb6 {[%emt 0:06:53]} 37. cxb6+ {[%emt 0:00:30]} Kxb6 {[%emt 0:00:02]} 38. Ra1 {[%emt 0:01:30]} Nd5 {[%emt 0:04:04]} 39. Bxd5 {[%emt 0:02:30]} Rxd5 {[%emt 0:01:32]} 40. Rf1 {[%emt 0:00:30]} Rd7 {[%emt 0:00:02]} 41. Kf2 {[%emt 0:00:30]} Kb5 {[%emt 0:01:23]} 42. Ke2 {[%emt 0:00:30]} Kb4 {[%emt 0:00:22]} 43. Rf3 {[%emt 0:00:00]} a5 {[%emt 0:00:08]} 44. Ke1 {[%emt 0:00:00]} Ka3 {[%emt 0:01:06]} 45. Ke2 {[%emt 0:00:30]} Kb2 {[%emt 0:00:00]} 46. Ke1 {[%emt 0:00:00]} Rb7 {[%emt 0:00:29]} 47. Kd2 {[%emt 0:00:00]} Rd7+ {[%emt 0:01:12]} 48. Ke2 {[%emt 0:00:30]} Rb7 {[%emt 0:01:15]} 49. Kd2 {[%emt 0:00:30]} Rxb3 {[%emt 0:01:11]} 50. Rxf7 {[%emt 0:00:00]} a4 {[%emt 0:00:00]} 51. Rc7 {[%emt 0:00:00]} Rxh3 {[%emt 0:00:50]} 52. Rb7+ {[%emt 0:00:30]} Rb3 {[%emt 0:00:57]} 53. Rc7 {[%emt 0:00:00]} Rb5 {[%emt 0:00:59]} 54. Rc2+ {[%emt 0:00:00]} Kb3 {[%emt 0:00:13]} 55. Rc3+ {[%emt 0:00:30]} Kb4 {[%emt 0:00:15]} 56. Re3 {[%emt 0:00:00]} Rc5 {[%emt 0:00:10]} 0-1

[Event "Turkish Cup 2024"]
[Site "Denizli"]
[Date "2024.07.31"]
[Round "3"]
[White "Madsman, Berk"]
[Black "Ozgun, Yigit Deniz"]
[Result "1-0"]
[ECO "B52"]
[WhiteElo "1797"]
[BlackElo "1973"]
[Annotator "RC"]
[PlyCount "179"]
[EventDate "2024.08.01"]
[EventType "swiss"]
[EventCountry "TUR"]
[SourceTitle "playchess.com"]
[Source "ChessBase"]
[SourceQuality "1"]
[TimeControl "5400+30"]

1. e4 {[%emt 0:01:00]} c5 {[%emt 0:07:00]} 2. Nf3 {[%emt 0:00:30]} d6 {[%emt 0:00:30]} 3. Bb5+ {[%emt 0:00:30]} Bd7 {[%emt 0:00:30]} 4. Bxd7+ {[%emt 0:00:30]} Nxd7 {[%emt 0:00:30]} 5. O-O {[%emt 0:00:30]} Ngf6 {[%emt 0:00:30]} 6. Re1 {[%emt 0:00:30]} e6 {[%emt 0:00:30]} 7. c3 {[%emt 0:01:30]} Be7 {[%emt 0:01:30]} 8. d4 {[%emt 0:00:30]} O-O {[%emt 0:02:30]} 9. Nbd2 {[%emt 0:04:30]} b5 {[%emt 0:02:30]} 10. e5 {[%emt 0:05:30]} Ne8 {[%emt 0:00:00]} 11. Qe2 {[%emt 0:01:30]} cxd4 {[%emt 0:08:00]} 12. exd6 {[%emt 0:04:30]} Nxd6 {[%emt 0:17:30]} 13. Nxd4 {[%emt 0:00:30]} Qb6 {[%emt 0:00:30]} 14. N2f3 {[%emt 0:02:30]} Bf6 {[%emt 0:04:30]} 15. Be3 {[%emt 0:01:30]} Nc4 {[%emt 0:06:30]} 16. Rad1 {[%emt 0:06:30]} Nxe3 {[%emt 0:00:30]} 17. Qxe3 {[%emt 0:00:30]} Qb7 {[%emt 0:02:30]} 18. Ng5 {[%emt 0:17:30]} Nc5 {[%emt 0:06:30]} 19. Ndf3 {[%emt 0:02:30]} Rac8 {[%emt 0:00:30]} 20. Ne4 {[%emt 0:00:30]} Nxe4 {[%emt 0:01:30]} 21. Qxe4 {[%emt 0:00:30]} Qa6 {[%emt 0:03:30]} 22. a3 {[%emt 0:00:30]} Rc4 {[%emt 0:02:30]} 23. Qe2 {[%emt 0:02:30]} Qb7 {[%emt 0:09:30]} 24. Nd2 {[%emt 0:02:30]} Rc6 {[%emt 0:01:30]} 25. Ne4 {[%emt 0:00:30]} Be7 {[%emt 0:00:30]} 26. Rd3 {[%emt 0:02:30]} e5 {[%emt 0:06:47]} 27. Ng3 {[%emt 0:04:30]} Rg6 {[%emt 0:01:44]} 28. Qd1 {[%emt 0:01:30]} Re6 {[%emt 0:02:01]} 29. Nf5 {[%emt 0:02:30]} Bc5 {[%emt 0:00:15]} 30. b4 {[%emt 0:05:30]} Bb6 {[%emt 0:01:11]} 31. Rd7 {[%emt 0:00:30]} Qc6 {[%emt 0:01:23]} 32. Rd3 {[%emt 0:09:58]} g6 {[%emt 0:01:03]} 33. Ne3 {[%emt 0:01:29]} e4 {[%emt 0:00:21]} 34. Rd2 {[%emt 0:01:36]} Qxc3 {[%emt 0:00:15]} 35. Nd5 {[%emt 0:01:14]} Qe5 {[%emt 0:01:06]} 36. Nxb6 {[%emt 0:01:10]} Rxb6 {[%emt 0:00:36]} 37. Rd5 {[%emt 0:00:14]} Qe6 {[%emt 0:00:01]} 38. Qd4 {[%emt 0:00:20]} Re8 {[%emt 0:00:08]} 39. Rd8 {[%emt 0:01:01]} f5 {[%emt 0:03:04]} 40. Rd7 {[%emt 0:00:28]} Re7 {[%emt 0:00:21]} 41. Rd8+ {[%emt 0:00:10]} Re8 {[%emt 0:00:07]} 42. Rd7 {[%emt 0:01:29]} Qe5 {[%emt 0:00:13]} 43. Qxe5 {[%emt 0:00:42]} Rxe5 {[%emt 0:00:03]} 44. Rc1 {[%emt 0:00:13]} Rbe6 {[%emt 0:04:10]} 45. Rc8+ {[%emt 0:01:15]} Re8 {[%emt 0:00:30]} 46. Rcc7 {[%emt 0:00:00]} R8e6 {[%emt 0:00:34]} 47. Rg7+ {[%emt 0:00:05]} Kf8 {[%emt 0:00:18]} 48. Rcf7+ {[%emt 0:00:47]} Ke8 {[%emt 0:00:30]} 49. Rxa7 {[%emt 0:00:00]} Re7 {[%emt 0:00:00]} 50. Rxh7 {[%emt 0:00:49]} Rxa7 {[%emt 0:01:37]} 51. Rxa7 {[%emt 0:00:03]} Rd5 {[%emt 0:00:19]} 52. Kf1 {[%emt 0:00:22]} Rd3 {[%emt 0:00:42]} 53. g3 {[%emt 0:02:27]} g5 {[%emt 0:01:54]} 54. Rb7 {[%emt 0:00:53]} Rxa3 {[%emt 0:01:02]} 55. Rxb5 {[%emt 0:00:10]} Rf3 {[%emt 0:00:00]} 56. g4 {[%emt 0:01:05]} fxg4 {[%emt 0:00:20]} 57. Re5+ {[%emt 0:00:15]} Kf7 {[%emt 0:01:11]} 58. Rxe4 {[%emt 0:00:02]} Rb3 {[%emt 0:00:26]} 59. Rxg4 {[%emt 0:00:40]} Kf6 {[%emt 0:00:08]} 60. Kg2 {[%emt 0:00:00]} Kf5 {[%emt 0:00:18]} 61. Rc4 {[%emt 0:00:26]} g4 {[%emt 0:01:00]} 62. Rc5+ {[%emt 0:00:42]} Kf6 {[%emt 0:00:15]} 63. b5 {[%emt 0:00:00]} Kg6 {[%emt 0:00:33]} 64. Rc6+ {[%emt 0:00:01]} Kf5 {[%emt 0:00:52]} 65. Rb6 {[%emt 0:00:30]} Kg5 {[%emt 0:00:03]} 66. Rb8 {[%emt 0:00:20]} Kg6 {[%emt 0:00:11]} 67. b6 {[%emt 0:00:11]} Kg7 {[%emt 0:00:04]} 68. b7 {[%emt 0:00:23]} Kh7 {[%emt 0:00:09]} 69. h4 {[%emt 0:00:43]} Kg7 {[%emt 0:00:54]} 70. h5 {[%emt 0:00:30]} Kh7 {[%emt 0:00:00]} 71. h6 {[%emt 0:00:00]} g3 {[%emt 0:01:05]} 72. fxg3 {[%emt 0:00:12]} Rb2+ {[%emt 0:00:24]} 73. Kf3 {[%emt 0:00:30]} Rb3+ {[%emt 0:00:00]} 74. Ke4 {[%emt 0:00:06]} Rb4+ {[%emt 0:00:16]} 75. Kd3 {[%emt 0:00:13]} Rb3+ {[%emt 0:00:31]} 76. Kc2 {[%emt 0:00:02]} Rxg3 {[%emt 0:00:42]} 77. Rh8+ {[%emt 0:00:30]} Kxh8 {[%emt 0:00:00]} 78. b8=Q+ {[%emt 0:00:15]} Rg8 {[%emt 0:00:00]} 79. Qc7 {[%emt 0:00:09]} Rg6 {[%emt 0:00:00]} 80. Kd3 {[%emt 0:00:54]} Rxh6 {[%emt 0:00:25]} 81. Ke4 {[%emt 0:00:06]} Rg6 {[%emt 0:01:46]} 82. Kf5 {[%emt 0:00:26]} Rg7 {[%emt 0:00:25]} 83. Qe5 {[%emt 0:00:14]} Kh7 {[%emt 0:00:16]} 84. Qe8 {[%emt 0:01:12]} Rg8 {[%emt 0:00:30]} 85. Qh5+ {[%emt 0:00:30]} Kg7 {[%emt 0:00:00]} 86. Qg6+ {[%emt 0:00:00]} Kf8 {[%emt 0:00:05]} 87. Qf6+ {[%emt 0:00:01]} Ke8 {[%emt 0:00:17]} 88. Ke6 {[%emt 0:00:05]} Rg6 {[%emt 0:00:09]} 89. Qxg6+ {[%emt 0:00:14]} Kf8 {[%emt 0:00:30]} 90. Qf7# {[%emt 0:00:08]} 1-0

[Event "Turkish Cup 2024"]
[Site "Denizli"]
[Date "2024.07.31"]
[Round "3"]
[White "Kiraz, Yigit"]
[Black "Baylav, Can"]
[Result "0-1"]
[ECO "D13"]
[WhiteElo "1786"]
[BlackElo "2086"]
[Annotator "ChessBase"]
[PlyCount "112"]
[EventDate "2024.08.01"]
[EventType "swiss"]
[EventCountry "TUR"]
[SourceTitle "playchess.com"]
[Source "ChessBase"]
[SourceQuality "1"]
[TimeControl "5400+30"]

1. d4 {[%emt 0:05:00]} Nf6 {[%emt 0:01:00]} 2. c4 {[%emt 0:01:30]} c6 {[%emt 0:02:30]} 3. Nf3 {[%emt 0:05:30]} d5 {[%emt 0:00:00]} 4. cxd5 {[%emt 0:05:30]} cxd5 {[%emt 0:00:00]} 5. Qb3 {[%emt 0:01:30]} Nc6 {[%emt 0:00:30]} 6. Nc3 {[%emt 0:02:30]} a6 {[%emt 0:00:30]} 7. Bf4 {[%emt 0:01:30]} e6 {[%emt 0:01:30]} 8. h3 {[%emt 0:02:30]} Be7 {[%emt 0:05:30]} 9. e3 {[%emt 0:00:30]} O-O {[%emt 0:00:00]} 10. Bd3 {[%emt 0:02:30]} b5 {[%emt 0:01:00]} 11. O-O {[%emt 0:01:30]} Bb7 {[%emt 0:00:30]} 12. Rfc1 {[%emt 0:00:30]} Rc8 {[%emt 0:00:30]} 13. a3 {[%emt 0:13:30]} Na5 {[%emt 0:01:30]} 14. Qd1 {[%emt 0:10:30]} Nc4 {[%emt 0:03:30]} 15. Qe2 {[%emt 0:01:30]} Qb6 {[%emt 0:02:30]} 16. b4 {[%emt 0:08:30]} a5 {[%emt 0:02:30]} 17. a4 {[%emt 0:00:30]} axb4 {[%emt 0:02:30]} 18. Nxb5 {[%emt 0:01:30]} Ba6 {[%emt 0:01:30]} 19. Bxc4 {[%emt 0:02:30]} dxc4 {[%emt 0:00:00]} 20. Rxc4 {[%emt 0:00:00]} Bxb5 {[%emt 0:00:00]} 21. axb5 {[%emt 0:01:00]} Qxb5 {[%emt 0:00:30]} 22. Rc2 {[%emt 0:00:00]} Qxe2 {[%emt 0:00:30]} 23. Rxe2 {[%emt 0:00:00]} Nd5 {[%emt 0:01:30]} 24. Bg3 {[%emt 0:02:30]} Ra8 {[%emt 0:00:30]} 25. Rxa8 {[%emt 0:03:30]} Rxa8 {[%emt 0:00:30]} 26. Rb2 {[%emt 0:00:30]} Nc3 {[%emt 0:00:30]} 27. Nd2 {[%emt 0:01:30]} Ra1+ {[%emt 0:01:30]} 28. Kh2 {[%emt 0:00:30]} h5 {[%emt 0:00:00]} 29. Nb3 {[%emt 0:04:30]} Rf1 {[%emt 0:01:00]} 30. Nc5 {[%emt 0:04:17]} h4 {[%emt 0:00:00]} 31. Bc7 {[%emt 0:03:17]} Nd1 {[%emt 0:00:00]} 32. Rxb4 {[%emt 0:00:31]} Rxf2 {[%emt 0:00:30]} 33. Kg1 {[%emt 0:12:27]} Re2 {[%emt 0:01:30]} 34. Kf1 {[%emt 0:02:07]} Rxe3 {[%emt 0:00:00]} 35. Bf4 {[%emt 0:00:00]} Ra3 {[%emt 0:01:00]} 36. Rb8+ {[%emt 0:00:10]} Kh7 {[%emt 0:00:30]} 37. Rb7 {[%emt 0:00:18]} Bf6 {[%emt 0:01:30]} 38. Rxf7 {[%emt 0:00:23]} Kg6 {[%emt 0:00:30]} 39. Rd7 {[%emt 0:00:50]} Kf5 {[%emt 0:00:30]} 40. Bd2 {[%emt 0:00:07]} Ra2 {[%emt 0:00:30]} 41. Ke1 {[%emt 0:00:29]} Nb2 {[%emt 0:01:30]} 42. Nb3 {[%emt 0:02:35]} Nc4 {[%emt 0:00:30]} 43. d5 {[%emt 0:00:34]} Rb2 {[%emt 0:00:30]} 44. dxe6 {[%emt 0:00:37]} Rxb3 {[%emt 0:00:30]} 45. e7 {[%emt 0:00:01]} Rb8 {[%emt 0:00:30]} 46. Bb4 {[%emt 0:01:09]} Re8 {[%emt 0:00:30]} 47. Rc7 {[%emt 0:00:28]} Ne3 {[%emt 0:00:30]} 48. Ke2 {[%emt 0:00:17]} Nd5 {[%emt 0:00:30]} 49. Rc5 {[%emt 0:00:13]} Rxe7+ {[%emt 0:00:30]} 50. Kf3 {[%emt 0:00:06]} Re3+ {[%emt 0:00:30]} 51. Kf2 {[%emt 0:00:02]} Re5 {[%emt 0:00:00]} 52. Bd2 {[%emt 0:00:10]} Nf4 {[%emt 0:00:00]} 53. Rxe5+ {[%emt 0:00:40]} Bxe5 {[%emt 0:00:30]} 54. Bxf4 {[%emt 0:00:24]} Kxf4 {[%emt 0:00:30]} 55. Kg1 {[%emt 0:00:06]} Kg3 {[%emt 0:00:30]} 56. Kh1 {[%emt 0:00:07]} Kf2 {[%emt 0:00:00]} 0-1

[Event "Turkish Cup 2024"]
[Site "Denizli"]
[Date "2024.07.31"]
[Round "3"]
[White "Arslan, Levent"]
[Black "Tirpan, Ceren"]
[Result "1/2-1/2"]
[ECO "D76"]
[WhiteElo "1778"]
[BlackElo "1926"]
[Annotator "ChessBase"]
[PlyCount "86"]
[EventDate "2024.08.01"]
[EventType "swiss"]
[EventCountry "TUR"]
[SourceTitle "playchess.com"]
[Source "ChessBase"]
[SourceQuality "1"]
[TimeControl "5400+30"]

1. d4 {[%emt 0:03:00]} Nf6 {[%emt 0:01:00]} 2. c4 {[%emt 0:00:00]} g6 {[%emt 0:01:30]} 3. Nf3 {[%emt 0:04:00]} Bg7 {[%emt 0:00:00]} 4. g3 {[%emt 0:01:30]} O-O {[%emt 0:05:00]} 5. Bg2 {[%emt 0:00:30]} d5 {[%emt 0:05:30]} 6. cxd5 {[%emt 0:00:30]} Nxd5 {[%emt 0:00:30]} 7. O-O {[%emt 0:03:30]} Nb6 {[%emt 0:05:30]} 8. Nc3 {[%emt 0:09:30]} Nc6 {[%emt 0:05:30]} 9. d5 {[%emt 0:07:30]} Nb4 {[%emt 0:12:30]} 10. e4 {[%emt 0:11:30]} c6 {[%emt 0:14:30]} 11. a3 {[%emt 0:04:30]} Na6 {[%emt 0:00:30]} 12. dxc6 {[%emt 0:01:30]} Qxd1 {[%emt 0:01:30]} 13. Rxd1 {[%emt 0:01:30]} bxc6 {[%emt 0:00:30]} 14. Nd4 {[%emt 0:11:30]} Bg4 {[%emt 0:07:30]} 15. f3 {[%emt 0:02:30]} Bd7 {[%emt 0:00:00]} 16. Nb3 {[%emt 0:07:30]} Rfd8 {[%emt 0:10:00]} 17. Bf1 {[%emt 0:03:30]} Nc7 {[%emt 0:06:30]} 18. Nc5 {[%emt 0:04:30]} Be6 {[%emt 0:05:12]} 19. Bf4 {[%emt 0:02:40]} Nb5 {[%emt 0:06:27]} 20. Nxe6 {[%emt 0:08:50]} fxe6 {[%emt 0:04:50]} 21. Nxb5 {[%emt 0:01:25]} cxb5 {[%emt 0:00:13]} 22. Bxb5 {[%emt 0:00:43]} Bxb2 {[%emt 0:00:21]} 23. Rxd8+ {[%emt 0:00:46]} Rxd8 {[%emt 0:00:06]} 24. Ra2 {[%emt 0:00:00]} Bd4+ {[%emt 0:00:12]} 25. Kg2 {[%emt 0:01:08]} Rc8 {[%emt 0:01:45]} 26. Bd2 {[%emt 0:03:51]} Kf7 {[%emt 0:01:47]} 27. Kf1 {[%emt 0:00:10]} Nc4 {[%emt 0:00:26]} 28. Bxc4 {[%emt 0:00:21]} Rxc4 {[%emt 0:00:32]} 29. Ke2 {[%emt 0:00:07]} e5 {[%emt 0:00:00]} 30. Kd3 {[%emt 0:00:25]} Ra4 {[%emt 0:00:43]} 31. Bb4 {[%emt 0:01:35]} a5 {[%emt 0:02:24]} 32. Bc3 {[%emt 0:03:44]} g5 {[%emt 0:00:11]} 33. Bxd4 {[%emt 0:00:45]} Rxd4+ {[%emt 0:00:46]} 34. Ke3 {[%emt 0:00:15]} Ra4 {[%emt 0:00:00]} 35. Kd3 {[%emt 0:00:29]} Ke6 {[%emt 0:00:12]} 36. g4 {[%emt 0:00:26]} Kd6 {[%emt 0:00:18]} 37. Kc3 {[%emt 0:00:15]} Kc5 {[%emt 0:00:10]} 38. Kb3 {[%emt 0:00:42]} Rc4 {[%emt 0:00:08]} 39. Rd2 {[%emt 0:01:50]} a4+ {[%emt 0:00:07]} 40. Kb2 {[%emt 0:00:00]} Rd4 {[%emt 0:00:43]} 41. Rc2+ {[%emt 0:00:01]} Rc4 {[%emt 0:01:40]} 42. Rd2 {[%emt 0:01:19]} Rd4 {[%emt 0:00:55]} 43. Rc2+ {[%emt 0:00:29]} Rc4 {[%emt 0:00:19]} 1/2-1/2

[Event "Turkish Cup 2024"]
[Site "Denizli"]
[Date "2024.07.31"]
[Round "3"]
[White "Sarbak, Omer"]
[Black "Torun, Kagan"]
[Result "1-0"]
[ECO "B31"]
[WhiteElo "1771"]
[BlackElo "1868"]
[Annotator "NA"]
[PlyCount "117"]
[EventDate "2024.08.01"]
[EventType "swiss"]
[EventCountry "TUR"]
[SourceTitle "playchess.com"]
[Source "ChessBase"]
[SourceQuality "1"]
[TimeControl "5400+30"]

1. e4 {[%emt 0:01:00]} c5 {[%emt 0:01:00]} 2. Nf3 {[%emt 0:00:30]} Nc6 {[%emt 0:00:30]} 3. Bb5 {[%emt 0:00:30]} g6 {[%emt 0:00:00]} 4. O-O {[%emt 0:00:00]} Bg7 {[%emt 0:00:00]} 5. Re1 {[%emt 0:00:00]} e5 {[%emt 0:00:00]} 6. Bxc6 {[%emt 0:00:00]} dxc6 {[%emt 0:00:00]} 7. d3 {[%emt 0:00:00]} Ne7 {[%emt 0:11:30]} 8. Nbd2 {[%emt 0:01:30]} Qc7 {[%emt 0:02:30]} 9. h3 {[%emt 0:00:30]} h6 {[%emt 0:01:30]} 10. a4 {[%emt 0:03:30]} a5 {[%emt 0:10:30]} 11. b3 {[%emt 0:04:30]} Be6 {[%emt 0:01:30]} 12. Bb2 {[%emt 0:00:30]} O-O {[%emt 0:15:30]} 13. Qe2 {[%emt 0:02:30]} g5 {[%emt 0:07:30]} 14. Nf1 {[%emt 0:15:30]} Ng6 {[%emt 0:06:30]} 15. Ng3 {[%emt 0:09:30]} Qd7 {[%emt 0:13:30]} 16. Qe3 {[%emt 0:07:30]} b6 {[%emt 0:05:30]} 17. Nd2 {[%emt 0:04:30]} f6 {[%emt 0:04:10]} 18. Nc4 {[%emt 0:02:30]} Rab8 {[%emt 0:00:29]} 19. Qd2 {[%emt 0:09:30]} Nh4 {[%emt 0:01:53]} 20. Qe2 {[%emt 0:06:30]} Kh7 {[%emt 0:12:09]} 21. Ne3 {[%emt 0:02:30]} Rg8 {[%emt 0:01:28]} 22. Bc3 {[%emt 0:04:30]} Bh8 {[%emt 0:01:06]} 23. Ng4 {[%emt 0:04:41]} Bf7 {[%emt 0:02:37]} 24. Kh2 {[%emt 0:02:49]} Bg6 {[%emt 0:00:33]} 25. Ne3 {[%emt 0:02:47]} Rbf8 {[%emt 0:00:29]} 26. Qg4 {[%emt 0:01:49]} Rf7 {[%emt 0:00:34]} 27. Nc4 {[%emt 0:06:08]} Qxg4 {[%emt 0:00:38]} 28. hxg4 {[%emt 0:00:02]} Rb7 {[%emt 0:00:18]} 29. f3 {[%emt 0:01:27]} Rd8 {[%emt 0:00:30]} 30. Nxb6 {[%emt 0:03:06]} Rxb6 {[%emt 0:00:52]} 31. Bxa5 {[%emt 0:00:01]} Rdb8 {[%emt 0:00:21]} 32. Bxb6 {[%emt 0:00:30]} Rxb6 {[%emt 0:00:00]} 33. a5 {[%emt 0:01:59]} Ra6 {[%emt 0:00:14]} 34. Ra4 {[%emt 0:00:00]} Bg7 {[%emt 0:00:27]} 35. Nh5 {[%emt 0:01:11]} Bf7 {[%emt 0:01:02]} 36. Rb1 {[%emt 0:02:22]} Kg6 {[%emt 0:00:09]} 37. Nxg7 {[%emt 0:01:24]} Kxg7 {[%emt 0:00:30]} 38. b4 {[%emt 0:00:30]} c4 {[%emt 0:00:30]} 39. b5 {[%emt 0:00:30]} cxb5 {[%emt 0:00:30]} 40. Rxb5 {[%emt 0:00:30]} cxd3 {[%emt 0:00:30]} 41. cxd3 {[%emt 0:00:30]} Ng6 {[%emt 0:00:30]} 42. Rb6 {[%emt 0:00:00]} Ra8 {[%emt 0:00:50]} 43. a6 {[%emt 0:00:00]} Ne7 {[%emt 0:00:36]} 44. Rb7 {[%emt 0:01:01]} Nc8 {[%emt 0:00:23]} 45. a7 {[%emt 0:00:32]} Kg6 {[%emt 0:00:36]} 46. Rc7 {[%emt 0:00:58]} Nb6 {[%emt 0:00:35]} 47. Ra6 {[%emt 0:00:24]} Nc8 {[%emt 0:00:28]} 48. Rxc8 {[%emt 0:00:52]} Rxc8 {[%emt 0:00:30]} 49. a8=Q {[%emt 0:00:30]} Rxa8 {[%emt 0:00:00]} 50. Rxa8 {[%emt 0:00:00]} h5 {[%emt 0:00:52]} 51. gxh5+ {[%emt 0:00:00]} Kxh5 {[%emt 0:00:00]} 52. Kg3 {[%emt 0:00:00]} Bb3 {[%emt 0:00:11]} 53. Rh8+ {[%emt 0:00:54]} Kg6 {[%emt 0:00:03]} 54. Kf2 {[%emt 0:00:00]} Kg7 {[%emt 0:01:11]} 55. Rb8 {[%emt 0:00:00]} Bf7 {[%emt 0:00:08]} 56. Ke3 {[%emt 0:00:00]} Kg6 {[%emt 0:00:20]} 57. Rb6 {[%emt 0:00:39]} Kg7 {[%emt 0:01:04]} 58. g3 {[%emt 0:00:14]} Be8 {[%emt 0:00:00]} 59. f4 {[%emt 0:00:21]} 1-0

[Event "Turkish Cup 2024"]
[Site "Denizli"]
[Date "2024.07.31"]
[Round "3"]
[White "Karakilinc, Ali Kerem"]
[Black "Akbas, Kaan"]
[Result "0-1"]
[ECO "A24"]
[WhiteElo "1754"]
[BlackElo "1990"]
[Annotator "RC"]
[PlyCount "64"]
[EventDate "2024.08.01"]
[EventType "swiss"]
[EventCountry "TUR"]
[SourceTitle "playchess.com"]
[Source "ChessBase"]
[SourceQuality "1"]
[TimeControl "5400+30"]

1. c4 {[%emt 0:02:00]} Nf6 {[%emt 0:02:00]} 2. Nc3 {[%emt 0:00:30]} g6 {[%emt 0:00:30]} 3. g3 {[%emt 0:00:00]} Bg7 {[%emt 0:00:30]} 4. Bg2 {[%emt 0:00:00]} O-O {[%emt 0:00:00]} 5. d3 {[%emt 0:00:30]} e5 {[%emt 0:02:00]} 6. e4 {[%emt 0:00:30]} Nc6 {[%emt 0:05:30]} 7. Nge2 {[%emt 0:00:30]} d6 {[%emt 0:00:30]} 8. O-O {[%emt 0:00:30]} Nd4 {[%emt 0:00:30]} 9. Nxd4 {[%emt 0:02:30]} exd4 {[%emt 0:00:30]} 10. Ne2 {[%emt 0:00:30]} Nd7 {[%emt 0:01:30]} 11. f4 {[%emt 0:06:30]} f5 {[%emt 0:08:30]} 12. exf5 {[%emt 0:04:30]} Rxf5 {[%emt 0:01:30]} 13. Be4 {[%emt 0:07:30]} Nc5 {[%emt 0:04:30]} 14. g4 {[%emt 0:12:30]} Rf8 {[%emt 0:02:30]} 15. Bd5+ {[%emt 0:00:30]} Kh8 {[%emt 0:00:00]} 16. b4 {[%emt 0:01:30]} Na6 {[%emt 0:05:00]} 17. Bd2 {[%emt 0:00:30]} Bxg4 {[%emt 0:09:30]} 18. Bxb7 {[%emt 0:03:30]} Qe7 {[%emt 0:03:30]} 19. Bf3 {[%emt 0:06:30]} Bxf3 {[%emt 0:01:30]} 20. Rxf3 {[%emt 0:00:30]} c5 {[%emt 0:00:30]} 21. a3 {[%emt 0:02:30]} Qb7 {[%emt 0:02:30]} 22. Ng3 {[%emt 0:01:30]} d5 {[%emt 0:03:30]} 23. Rc1 {[%emt 0:14:30]} cxb4 {[%emt 0:04:30]} 24. axb4 {[%emt 0:00:30]} Nxb4 {[%emt 0:01:30]} 25. Rb1 {[%emt 0:05:30]} a5 {[%emt 0:00:30]} 26. cxd5 {[%emt 0:00:30]} Qxd5 {[%emt 0:00:30]} 27. Bxb4 {[%emt 0:02:30]} axb4 {[%emt 0:00:00]} 28. Rxb4 {[%emt 0:00:00]} Ra1 {[%emt 0:05:00]} 29. Qxa1 {[%emt 0:00:00]} Qxf3 {[%emt 0:00:00]} 30. Qf1 {[%emt 0:02:30]} Qe3+ {[%emt 0:00:00]} 31. Kg2 {[%emt 0:01:30]} Qd2+ {[%emt 0:00:00]} 32. Kh1 {[%emt 0:00:00]} Qe3 {[%emt 0:00:00]} 0-1

[Event "Turkish Cup 2024"]
[Site "Denizli"]
[Date "2024.07.31"]
[Round "3"]
[White "Gulbas, Isa"]
[Black "Metin, Enis"]
[Result "0-1"]
[ECO "B27"]
[WhiteElo "1749"]
[BlackElo "2142"]
[Annotator "RC"]
[PlyCount "33"]
[EventDate "2024.08.01"]
[EventType "swiss"]
[EventCountry "TUR"]
[SourceTitle "playchess.com"]
[Source "ChessBase"]
[SourceQuality "1"]
[TimeControl "5400+30"]

1. e4 {[%emt 0:07:00]} c5 {[%emt 0:01:00]} 2. Nc3 {[%emt 0:00:30]} g6 {[%emt 0:00:30]} 3. d4 {[%emt 0:00:00]} cxd4 {[%emt 0:00:00]} 4. Qxd4 {[%emt 0:00:00]} Nf6 {[%emt 0:00:00]} 5. Nf3 {[%emt 0:00:30]} Nc6 {[%emt 0:00:00]} 6. Qa4 {[%emt 0:00:30]} d6 {[%emt 0:00:00]} 7. e5 {[%emt 0:00:30]} dxe5 {[%emt 0:00:30]} 8. Nxe5 {[%emt 0:00:30]} Bg7 {[%emt 0:00:00]} 9. Nxc6 {[%emt 0:00:30]} bxc6 {[%emt 0:00:00]} 10. Qxc6+ {[%emt 0:00:30]} Bd7 {[%emt 0:00:00]} 11. Qa6 {[%emt 0:02:30]} O-O {[%emt 0:01:00]} 12. Be2 {[%emt 0:13:30]} Qc7 {[%emt 0:15:30]} 13. Bf3 {[%emt 0:03:30]} Rab8 {[%emt 0:02:30]} 14. Qe2 {[%emt 0:09:30]} Be6 {[%emt 0:01:30]} 15. a4 {[%emt 0:13:30]} Bc4 {[%emt 0:09:30]} 16. Nb5 {[%emt 0:02:30]} Rxb5 {[%emt 0:00:00]} 17. Qd1 {[%emt 0:12:30]} 0-1